bitfinex/quotes_BTCUSD_20241001
["timestamp","ask_amount","ask_price","bid_price","bid_amount"]
[1727785551207,0.001648,63901.0,63896.0,0.197104]
[1727785551208,0.000648,63901.0,63900.0,0.156494]
[1727785551471,0.000648,63901.0,63900.0,0.33739251]
[1727785551727,0.000648,63901.0,63900.0,0.59897905]
[1727785551972,0.470128,63901.0,63900.0,0.59897905]
[1727785552208,0.470128,63901.0,63900.0,0.6458869]
[1727785552448,0.470128,63901.0,63900.0,0.49388651]
[1727785552700,0.471128,63901.0,63900.0,0.49788651]
[1727785553160,0.471128,63901.0,63900.0,0.50388651]
[1727785553394,0.472128,63901.0,63900.0,0.50388651]
[1727785557594,0.472128,63901.0,63900.0,0.44162183]
[1727785558514,0.47716152,63901.0,63900.0,0.44162183]
[1727785565987,0.47716152,63901.0,63900.0,0.54162183]
[1727785568026,0.47716152,63901.0,63900.0,0.69585655]
[1727785569175,0.47716152,63901.0,63900.0,0.54162183]
[1727785572237,0.75096152,63901.0,63900.0,0.266494]
[1727785572464,0.75096152,63901.0,63900.0,0.166494]
[1727785573588,0.74896152,63901.0,63900.0,0.156494]
[1727785573809,0.75296152,63901.0,63900.0,0.156494]
[1727785574030,0.75896152,63901.0,63900.0,0.157494]
[1727785580943,0.75896152,63901.0,63900.0,0.3139518]
[1727785598070,0.48516152,63901.0,63900.0,0.3139518]
[1727785598980,0.48516152,63901.0,63900.0,0.36087908]
[1727785599462,0.480128,63901.0,63900.0,0.3139518]
[1727785599907,0.48509538,63901.0,63900.0,0.3139518]
[1727785600143,0.48509538,63901.0,63900.0,0.36088392]
[1727785600359,0.48509538,63901.0,63900.0,0.36088373]
[1727785602005,0.48509538,63901.0,63900.0,0.3139518]
[1727785602909,0.48509538,63901.0,63900.0,0.41777211]
[1727785604922,0.47909538,63901.0,63900.0,0.48717]
[1727785605163,0.47509538,63901.0,63900.0,0.48717]
[1727785605817,0.48109538,63901.0,63900.0,0.51777211]
[1727785606035,0.48109538,63901.0,63900.0,0.81279623]
[1727785606500,0.48509538,63901.0,63900.0,0.81269476]
[1727785606716,0.48509538,63901.0,63900.0,0.74231668]
[1727785606902,0.48109538,63901.0,63900.0,0.81268474]
[1727785607154,0.47509538,63901.0,63900.0,0.81168474]
[1727785607373,0.47609538,63901.0,63900.0,0.82168474]
[1727785608286,0.47609538,63901.0,63900.0,0.59714017]
[1727785609498,0.47609538,63901.0,63900.0,0.52677211]
[1727785611486,0.47609538,63901.0,63900.0,0.4229518]
[1727785611723,0.47609538,63901.0,63900.0,0.46985328]
[1727785611724,0.67169538,63901.0,63900.0,0.46985328]
[1727785611969,0.74819538,63901.0,63900.0,0.54162183]
[1727785612666,0.743228,63901.0,63900.0,0.54162183]
[1727785613123,0.74874628,63901.0,63900.0,0.54162183]
[1727785614130,0.743228,63901.0,63900.0,0.54162183]
[1727785615577,0.471128,63901.0,63900.0,0.74497855]
[1727785615826,0.471128,63901.0,63900.0,0.69806861]
[1727785617029,0.471128,63901.0,63900.0,0.74497195]
[1727785617253,0.471128,63901.0,63900.0,0.7449719]
[1727785617491,0.471128,63901.0,63900.0,0.69806861]
[1727785618636,0.471128,63901.0,63900.0,0.74497087]
[1727785620082,0.471128,63901.0,63900.0,0.74497133]
[1727785620552,0.471128,63901.0,63900.0,0.58852455]
[1727785622313,0.654328,63901.0,63900.0,0.54162183]
[1727785622763,0.730128,63901.0,63900.0,0.54162183]
[1727785622999,0.730128,63901.0,63900.0,0.44162183]
[1727785623275,0.730128,63901.0,63900.0,0.67647571]
[1727785623488,0.730128,63901.0,63900.0,0.44162183]
[1727785641774,0.730128,63901.0,63900.0,0.48856002]
[1727785641993,0.730128,63901.0,63900.0,0.44162183]
[1727785642427,0.730128,63901.0,63900.0,0.48856002]
[1727785642842,0.730128,63901.0,63900.0,0.48856906]
[1727785644443,0.730128,63901.0,63900.0,0.44162183]
[1727785644663,0.730128,63901.0,63900.0,0.59806861]
[1727785644877,0.730128,63901.0,63900.0,0.66848946]
[1727785645138,0.730128,63901.0,63900.0,0.59806861]
[1727785645352,0.730128,63901.0,63900.0,0.44162183]
[1727785645561,0.730128,63901.0,63900.0,0.4885681]
[1727785646656,0.730128,63901.0,63900.0,0.44162183]
[1727785646878,0.730128,63901.0,63900.0,0.7368953]
[1727785647135,0.730128,63901.0,63900.0,0.73686933]
[1727785647347,0.730128,63901.0,63900.0,0.66644848]
[1727785647766,0.730128,63901.0,63900.0,0.82289526]
[1727785647978,0.730128,63901.0,63900.0,0.89330738]
[1727785650576,0.730128,63901.0,63900.0,0.82289526]
[1727785650823,0.730128,63901.0,63900.0,0.89330662]
[1727785651252,0.730128,63901.0,63900.0,0.66847997]
[1727785651482,0.730128,63901.0,63900.0,0.89331007]
[1727785652089,0.730128,63901.0,63900.0,0.82289871]
[1727785652315,0.730128,63901.0,63900.0,0.89331236]
[1727785652543,0.730128,63901.0,63900.0,0.73684621]
[1727785652753,0.730128,63901.0,63900.0,0.44162183]
[1727785655589,0.730128,63901.0,63900.0,0.51203548]
[1727785656486,0.730128,63901.0,63900.0,0.44162183]
[1727785656950,0.730128,63901.0,63900.0,0.51205323]
[1727785657357,0.730128,63901.0,63900.0,0.66850001]
[1727785660379,0.730128,63901.0,63900.0,0.59806861]
[1727785664740,0.730128,63901.0,63900.0,0.91679845]
[1727785664873,0.730128,63901.0,63900.0,0.82288968]
[1727785669064,0.654328,63901.0,63900.0,0.82288968]
[1727785669692,0.654328,63901.0,63900.0,0.91676474]
[1727785669867,0.654328,63901.0,63900.0,0.82288968]
[1727785671139,0.0751,63905.0,63904.0,0.156484]
[1727785671358,0.001648,63922.0,63918.0,0.15645]
[1727785671359,0.0787,63919.0,63918.0,0.15645]
[1727785671592,0.0787,63919.0,63918.0,0.27512003]
[1727785671807,0.0849528,63919.0,63918.0,0.27512003]
[1727785672006,0.54805,63919.0,63918.0,0.27512003]
[1727785672441,0.5543028,63919.0,63918.0,0.27512003]
[1727785673075,0.5663028,63919.0,63918.0,0.27612003]
[1727785674193,0.7573028,63919.0,63918.0,0.27612003]
[1727785674820,0.7683028,63919.0,63918.0,0.27712003]
[1727785681763,0.7691268,63919.0,63918.0,0.27712003]
[1727785686290,0.7691268,63919.0,63918.0,0.15845]
[1727785696404,0.7691268,63919.0,63918.0,0.002]
[1727785696649,0.7691268,63919.0,63918.0,0.15845]
[1727785696886,0.7691268,63919.0,63918.0,0.002]
[1727785700654,0.7691268,63919.0,63918.0,0.15845]
[1727785701464,0.7691268,63919.0,63918.0,0.002]
[1727785702194,0.7691268,63919.0,63918.0,0.15845]
[1727785706274,0.7691268,63919.0,63918.0,0.39330388]
[1727785706582,0.7691268,63919.0,63918.0,0.15845]
[1727785706681,0.762874,63919.0,63918.0,0.15845]
[1727785707144,0.76913015,63919.0,63918.0,0.15845]
[1727785707361,0.75713015,63919.0,63918.0,0.15745]
[1727785707581,0.74613015,63919.0,63918.0,0.15645]
[1727785707809,0.74613015,63919.0,63918.0,0.15745]
[1727785708025,0.76613015,63919.0,63918.0,0.15845]
[1727785708235,0.76613015,63919.0,63918.0,0.15745]
[1727785708443,0.75913015,63919.0,63918.0,0.15645]
[1727785708650,0.76513015,63919.0,63918.0,0.15745]
[1727785719188,0.68643015,63919.0,63918.0,0.15745]
[1727785727157,0.49543015,63919.0,63918.0,0.15745]
[1727785730636,0.76963015,63919.0,63918.0,0.15745]
[1727785744650,0.76963015,63919.0,63918.0,0.001]
[1727785744888,0.76963015,63919.0,63918.0,0.15745]
[1727785748441,0.76963015,63919.0,63918.0,0.001]
[1727785749830,0.92607815,63919.0,63918.0,0.001]
[1727785755757,0.76963015,63919.0,63918.0,0.001]
[1727785756181,0.92607815,63919.0,63918.0,0.001]
[1727785756906,0.76963015,63919.0,63918.0,0.001]
[1727785762694,0.79415266,63919.0,63918.0,0.001]
[1727785763681,0.95060066,63919.0,63918.0,0.001]
[1727785768968,0.79415266,63919.0,63918.0,0.001]
[1727785769182,0.5712262,63919.0,63918.0,0.001]
[1727785769630,0.5580531,63919.0,63918.0,0.001]
[1727785775152,0.5580531,63919.0,63915.0,0.14460248]
[1727785775366,0.2598,63918.0,63915.0,0.14460248]
[1727785775574,0.1995,63916.0,63915.0,0.14460248]
[1727785775784,0.27630244,63916.0,63915.0,0.14460248]
[1727785775996,0.28204699,63916.0,63915.0,0.14460248]
[1727785777136,0.1942,63915.0,63914.0,0.15646]
[1727785777359,0.27100244,63915.0,63914.0,0.15646]
[1727785777568,0.27674457,63915.0,63914.0,0.15646]
[1727785779501,0.08254457,63915.0,63911.0,0.312932]
[1727785779712,0.2664,63914.0,63913.0,0.156462]
[1727785779961,0.15930244,63914.0,63909.0,0.43161103]
[1727785780155,0.15930244,63914.0,63911.0,0.312934]
[1727785780156,0.1861,63913.0,63911.0,0.312934]
[1727785780368,0.34550244,63912.0,63911.0,0.469401]
[1727785780576,0.35123876,63912.0,63911.0,0.469401]
[1727785781885,0.35123876,63912.0,63911.0,0.470401]
[1727785782585,0.35323876,63912.0,63911.0,0.470401]
[1727785784635,0.35323876,63912.0,63911.0,0.469401]
[1727785784855,0.35723876,63912.0,63911.0,0.469401]
[1727785787103,0.35723876,63912.0,63911.0,0.468701]
[1727785787779,0.35723876,63912.0,63911.0,0.468401]
[1727785787997,0.35723876,63912.0,63911.0,0.469449]
[1727785788733,0.35723876,63912.0,63911.0,0.469049]
[1727785788955,0.35723876,63912.0,63911.0,0.468449]
[1727785789451,0.35723876,63912.0,63911.0,0.468149]
[1727785789634,0.35723876,63912.0,63911.0,0.001348]
[1727785789918,0.35723876,63912.0,63911.0,0.001148]
[1727785790397,0.35723876,63912.0,63911.0,0.000648]
[1727785790608,0.35723876,63912.0,63911.0,0.156715]
[1727785790798,0.35723876,63912.0,63911.0,0.156615]
[1727785791303,0.1841,63908.0,63902.0,0.23485388]
[1727785791528,0.1841,63908.0,63906.0,0.312958]
[1727785791752,0.1841,63908.0,63907.0,0.156477]
[1727785792190,0.65353,63908.0,63907.0,0.156477]
[1727785792662,0.65935648,63908.0,63907.0,0.156477]
[1727785793338,0.65935648,63908.0,63907.0,0.158477]
[1727785794778,0.65935648,63908.0,63907.0,0.156477]
[1727785795198,0.66935648,63908.0,63907.0,0.157477]
[1727785797480,1.18105831,63908.0,63907.0,0.001]
[1727785797712,0.76038431,63908.0,63902.0,0.23485388]
[1727785797950,0.27515703,63903.0,63902.0,0.23485388]
[1727785798173,1.02308703,63903.0,63902.0,0.23485388]
[1727785798398,0.434989,63902.0,63901.0,3.87875769]
[1727785798719,0.52885616,63902.0,63901.0,3.87875769]
[1727785798843,0.99828616,63902.0,63901.0,3.87875769]
[1727785799094,1.00410652,63902.0,63901.0,3.87875769]
[1727785799564,0.98060255,63902.0,63901.0,3.87875769]
[1727785800024,0.99160255,63902.0,63901.0,3.87975769]
[1727785800677,0.991601,63902.0,63901.0,3.87975769]
[1727785800888,1.01613108,63902.0,63901.0,3.87975769]
[1727785801100,1.03013108,63902.0,63901.0,3.87975769]
[1727785801549,0.95976944,63902.0,63901.0,3.87975769]
[1727785802443,1.00664345,63902.0,63901.0,3.87975769]
[1727785802671,0.98211337,63902.0,63901.0,3.87975769]
[1727785802914,1.09169716,63902.0,63901.0,3.87975769]
[1727785803134,1.17901579,63902.0,63901.0,3.67975769]
[1727785803360,1.22544749,63902.0,63901.0,3.39645769]
[1727785803589,1.25036719,63902.0,63901.0,3.39645769]
[1727785804060,1.23636719,63902.0,63901.0,3.39645769]
[1727785804519,1.23636719,63902.0,63901.0,3.39745769]
[1727785804520,1.32061305,63902.0,63901.0,3.39745769]
[1727785804742,1.30961305,63902.0,63901.0,3.39645769]
[1727785804982,1.30961305,63902.0,63901.0,3.39545769]
[1727785805201,1.32361305,63902.0,63901.0,3.39645769]
[1727785805429,1.25336719,63902.0,63901.0,3.39645769]
[1727785805657,1.13122989,63902.0,63901.0,3.39645769]
[1727785805890,1.2967107,63902.0,63901.0,3.39645769]
[1727785806106,1.24989992,63902.0,63901.0,3.39645769]
[1727785806361,1.29669693,63902.0,63901.0,3.39645769]
[1727785806583,1.24489992,63902.0,63901.0,3.39645769]
[1727785811802,1.37789992,63902.0,63901.0,3.39645769]
[1727785812287,1.44801636,63902.0,63901.0,2.68517183]
[1727785812534,1.15776719,63902.0,63901.0,1.77410042]
[1727785812754,1.84181019,63902.0,63901.0,1.50240149]
[1727785812979,1.74491019,63902.0,63901.0,1.30705749]
[1727785813200,1.74491019,63902.0,63901.0,1.27575949]
[1727785813436,1.77347723,63902.0,63901.0,0.60498176]
[1727785813672,0.171516,63891.0,63890.0,0.0491914]
[1727785813909,1.03907383,63891.0,63890.0,0.0491914]
[1727785814160,0.271528,63886.0,63885.0,0.23650188]
[1727785814385,1.03908583,63886.0,63885.0,0.23650188]
[1727785814602,1.03908583,63886.0,63885.0,0.001648]
[1727785815045,0.9204158,63886.0,63885.0,0.001648]
[1727785815265,1.03908583,63886.0,63885.0,0.001648]
[1727785815483,1.06362701,63886.0,63885.0,0.001648]
[1727785815915,0.94695698,63886.0,63885.0,0.001648]
[1727785816133,1.06562701,63886.0,63885.0,0.001648]
[1727785817037,0.94695698,63886.0,63885.0,0.001648]
[1727785817256,1.07962701,63886.0,63885.0,0.001648]
[1727785817710,1.09940482,63886.0,63885.0,0.001648]
[1727785817979,1.09940482,63886.0,63864.0,0.313164]
[1727785817980,0.005,63862.0,63861.0,0.000648]
[1727785818206,0.654017,63862.0,63861.0,0.000648]
[1727785818429,0.63183635,63862.0,63861.0,0.000648]
[1727785819086,0.64583635,63862.0,63861.0,0.000648]
[1727785819587,0.63183635,63862.0,63861.0,0.000648]
[1727785820009,0.78829415,63862.0,63861.0,0.000648]
[1727785820458,0.80229415,63862.0,63861.0,0.000648]
[1727785820891,0.78829415,63862.0,63861.0,0.000648]
[1727785821328,0.81629415,63862.0,63861.0,0.000648]
[1727785821775,0.80429415,63862.0,63861.0,0.000648]
[1727785821996,0.81629415,63862.0,63861.0,0.000648]
[1727785822254,0.80229415,63862.0,63861.0,0.000648]
[1727785822491,0.84084264,63862.0,63861.0,0.000648]
[1727785822732,0.82884264,63862.0,63861.0,0.000648]
[1727785822956,0.81484264,63862.0,63861.0,0.000648]
[1727785823272,0.84284264,63862.0,63861.0,0.000648]
[1727785823698,0.82884264,63862.0,63861.0,0.000648]
[1727785823935,0.84084264,63862.0,63861.0,0.000648]
[1727785824686,0.84284264,63862.0,63861.0,0.000648]
[1727785824943,0.84284264,63862.0,63841.0,0.0757]
[1727785824944,0.161617,63850.0,63841.0,0.0757]
[1727785825346,0.3510748,63850.0,63842.0,0.23485388]
[1727785825348,0.161634,63843.0,63842.0,0.23485388]
[1727785825554,0.79306897,63843.0,63842.0,0.23485388]
[1727785825760,0.156646,63838.0,63837.0,0.2309628]
[1727785825973,0.7825338,63838.0,63837.0,0.1811]
[1727785826196,0.78808658,63838.0,63837.0,0.1811]
[1727785827052,0.80208658,63838.0,63837.0,0.1811]
[1727785827279,0.80208658,63838.0,63837.0,0.337748]
[1727785827280,0.48898278,63838.0,63837.0,0.337748]
[1727785827461,0.48898278,63838.0,63837.0,0.420248]
[1727785827657,0.47498278,63838.0,63837.0,0.420248]
[1727785827866,0.46943,63838.0,63837.0,0.420248]
[1727785828074,0.47495921,63838.0,63837.0,0.420248]
[1727785828518,0.48895921,63838.0,63837.0,0.420248]
[1727785828710,0.47495921,63838.0,63837.0,0.420248]
[1727785829126,0.52751231,63838.0,63837.0,0.420248]
[1727785829390,0.51351231,63838.0,63837.0,0.420248]
[1727785829575,0.49951231,63838.0,63837.0,0.420248]
[1727785829782,0.50951231,63838.0,63837.0,0.420248]
[1727785829982,0.51551231,63838.0,63837.0,0.420248]
[1727785830838,0.29095921,63838.0,63837.0,0.420248]
[1727785831247,0.27543,63838.0,63837.0,0.420248]
[1727785831469,0.28043,63838.0,63837.0,0.420248]
[1727785831849,0.27543,63838.0,63837.0,0.420248]
[1727785832055,0.27943,63838.0,63837.0,0.420248]
[1727785832775,0.02455134,63846.0,63845.0,0.156629]
[1727785832997,0.02455134,63846.0,63845.0,0.60333779]
[1727785833242,0.49443134,63846.0,63845.0,0.60333779]
[1727785833488,0.46988,63846.0,63845.0,0.60333779]
[1727785833694,0.4755508,63846.0,63845.0,0.60333779]
[1727785834132,0.4765508,63846.0,63845.0,0.60333779]
[1727785834602,0.4755508,63846.0,63845.0,0.60333779]
[1727785834838,0.4755508,63846.0,63845.0,0.60433779]
[1727785835070,0.4755508,63846.0,63845.0,0.60333779]
[1727785835561,0.4755508,63846.0,63845.0,0.60433779]
[1727785836265,0.4765508,63846.0,63845.0,0.60333779]
[1727785836732,0.4755508,63846.0,63845.0,0.60333779]
[1727785837634,0.4755508,63846.0,63845.0,0.60533779]
[1727785839048,0.4755508,63846.0,63845.0,0.079]
[1727785839526,0.6338248,63846.0,63845.0,0.002]
[1727785840236,0.6468248,63846.0,63845.0,0.002]
[1727785840743,0.7904538,63846.0,63838.0,0.0789]
[1727785840971,0.8154538,63846.0,63838.0,0.0789]
[1727785841217,0.156629,63845.0,63839.0,0.156643]
[1727785841457,0.46988,63844.0,63839.0,0.156643]
[1727785841943,0.00543928,63843.0,63839.0,0.156643]
[1727785842199,0.46988,63842.0,63838.0,0.235545]
[1727785842686,0.00543828,63841.0,63838.0,0.235545]
[1727785842923,0.46988,63840.0,63838.0,0.0789]
[1727785843455,0.00543189,63839.0,63838.0,0.235545]
[1727785843803,0.47531189,63839.0,63838.0,0.235545]
[1727785844510,0.47531189,63839.0,63838.0,0.0789]
[1727785845198,0.48631189,63839.0,63838.0,0.0789]
[1727785845472,0.156646,63838.0,63837.0,0.000824]
[1727785845736,0.626526,63838.0,63837.0,0.000824]
[1727785845990,0.63196274,63838.0,63837.0,0.000824]
[1727785846716,0.78842054,63838.0,63837.0,0.000824]
[1727785847238,0.79342054,63838.0,63837.0,0.000824]
[1727785847473,0.79742054,63838.0,63837.0,0.000824]
[1727785847707,0.79242054,63838.0,63837.0,0.000824]
[1727785847927,0.84497787,63838.0,63837.0,0.000824]
[1727785848139,0.82697787,63838.0,63837.0,0.000824]
[1727785848568,0.84097787,63838.0,63837.0,0.000824]
[1727785849490,0.82697787,63838.0,63837.0,0.000824]
[1727785850021,0.84097787,63838.0,63837.0,0.000824]
[1727785850474,0.52787407,63838.0,63837.0,0.000824]
[1727785850695,0.50496474,63838.0,63837.0,0.234572]
[1727785851150,0.50496474,63838.0,63829.0,0.1857]
[1727785851151,0.015,63816.0,63815.0,0.0771]
[1727785851385,0.48488,63816.0,63815.0,0.0771]
[1727785851822,0.49022851,63816.0,63815.0,0.0771]
[1727785852725,0.015,63808.0,63807.0,0.0812]
[1727785852940,0.48488,63808.0,63807.0,0.0812]
[1727785853379,0.49022325,63808.0,63807.0,0.0812]
[1727785854335,0.49422325,63808.0,63807.0,0.0812]
[1727785856537,0.65094325,63808.0,63807.0,0.0812]
[1727785856760,0.64694325,63808.0,63807.0,0.0812]
[1727785857009,0.65494325,63808.0,63807.0,0.0812]
[1727785859208,0.49822325,63808.0,63807.0,0.0812]
[1727785859417,0.49822325,63808.0,63807.0,0.2701]
[1727785860607,0.48822325,63808.0,63807.0,0.2701]
[1727785861985,0.48322325,63808.0,63807.0,0.2701]
[1727785862435,0.48322325,63808.0,63807.0,0.5832798]
[1727785862653,0.47288,63808.0,63807.0,0.6832798]
[1727785862908,0.47496698,63808.0,63807.0,0.6832798]
[1727785863138,0.47996698,63808.0,63807.0,0.6832798]
[1727785863843,0.47796698,63808.0,63807.0,0.6832798]
[1727785864057,0.47896698,63808.0,63807.0,0.6832798]
[1727785864708,0.47596698,63808.0,63807.0,0.6832798]
[1727785864922,0.47696698,63808.0,63807.0,0.6832798]
[1727785865142,0.47696698,63808.0,63807.0,0.6841038]
[1727785865805,0.47596698,63808.0,63807.0,0.6841038]
[1727785866025,0.47696698,63808.0,63807.0,0.6841038]
[1727785866241,0.47596698,63808.0,63807.0,0.6841038]
[1727785866452,0.47496698,63808.0,63807.0,0.6841038]
[1727785866675,0.47596698,63808.0,63807.0,0.6841038]
[1727785866897,0.47496698,63808.0,63807.0,0.7071038]
[1727785867114,0.47496698,63808.0,63807.0,0.84232623]
[1727785867332,0.47696698,63808.0,63807.0,0.84232623]
[1727785867556,0.049274,63820.0,63819.0,0.336993]
[1727785867777,0.049274,63820.0,63819.0,0.4934508]
[1727785868011,0.23508208,63821.0,63819.0,0.3367578]
[1727785868247,0.31339,63820.0,63819.0,0.1803]
[1727785868477,0.31339,63820.0,63819.0,0.51820179]
[1727785870070,0.31439,63820.0,63819.0,0.51820179]
[1727785870316,0.04925305,63820.0,63819.0,1.03176648]
[1727785870559,0.005,63830.0,63819.0,1.03176648]
[1727785870560,0.054939,63832.0,63831.0,0.236463]
[1727785871047,0.47499,63832.0,63831.0,0.236463]
[1727785872247,0.47799,63832.0,63831.0,0.236463]
[1727785872469,0.47799,63832.0,63831.0,0.71616389]
[1727785872470,0.47299,63832.0,63831.0,0.71616389]
[1727785872701,0.47299,63832.0,63831.0,0.81616389]
[1727785873433,0.47499,63832.0,63831.0,0.81616389]
[1727785873675,0.47199,63832.0,63831.0,0.81616389]
[1727785874138,0.46999,63832.0,63831.0,0.81616389]
[1727785874376,0.47499,63832.0,63831.0,0.85856389]
[1727785874599,0.47399,63832.0,63831.0,0.81616389]
[1727785874823,0.001648,63838.0,63831.0,0.81616389]
[1727785874824,0.001648,63838.0,63837.0,0.333048]
[1727785875054,0.001648,63838.0,63837.0,0.76668179]
[1727785875499,0.001648,63838.0,63837.0,0.55333979]
[1727785876197,0.001648,63838.0,63837.0,0.33766659]
[1727785876423,0.001648,63838.0,63837.0,0.49431459]
[1727785876914,0.001648,63838.0,63831.0,0.33224309]
[1727785876915,0.43859,63832.0,63831.0,0.469989]
[1727785877142,0.43859,63832.0,63831.0,0.156663]
[1727785877368,0.44365591,63832.0,63831.0,0.156663]
[1727785877586,0.44024,63832.0,63831.0,0.156663]
[1727785877807,0.44531231,63832.0,63831.0,0.156663]
[1727785878247,0.44531231,63832.0,63831.0,0.001]
[1727785878723,0.44531231,63832.0,63827.0,0.075]
[1727785879176,0.44531231,63832.0,63821.0,0.18120879]
[1727785879177,0.005,63830.0,63821.0,0.075]
[1727785879408,0.44359,63829.0,63821.0,0.075]
[1727785879874,0.44851743,63829.0,63821.0,0.231687]
[1727785880532,0.44851743,63829.0,63821.0,0.075]
[1727785880784,0.44951743,63829.0,63820.0,0.1]
[1727785880988,0.44951743,63829.0,63821.0,0.1]
[1727785881444,0.44951743,63829.0,63816.0,0.231799]
[1727785881445,0.005,63825.0,63816.0,0.231799]
[1727785881668,0.43859,63824.0,63817.0,0.1]
[1727785881917,0.44353458,63824.0,63817.0,0.1]
[1727785882165,0.44853458,63824.0,63817.0,0.1]
[1727785882382,0.44853458,63824.0,63816.0,0.0751]
[1727785882383,0.005,63821.0,63816.0,0.0751]
[1727785882602,0.43859,63820.0,63817.0,0.156697]
[1727785882819,0.44352975,63820.0,63816.0,0.0751]
[1727785883278,0.44852975,63820.0,63816.0,0.004]
[1727785883712,0.44852975,63820.0,63814.0,0.1]
[1727785883932,0.44852975,63820.0,63811.0,0.0754]
[1727785883933,0.01,63819.0,63817.0,0.001]
[1727785884153,0.06225298,63819.0,63811.0,0.232111]
[1727785884371,0.44353218,63818.0,63812.0,0.33508208]
[1727785884603,0.44353218,63818.0,63816.0,0.001]
[1727785884846,0.44353218,63818.0,63812.0,0.1]
[1727785885064,0.4922464,63818.0,63812.0,0.1]
[1727785885504,0.4922464,63818.0,63811.0,0.232111]
[1727785886008,0.4922464,63818.0,63812.0,0.256709]
[1727785886901,0.4922464,63818.0,63817.0,0.001]
[1727785887133,0.4922464,63818.0,63812.0,0.256709]
[1727785887395,0.04725298,63817.0,63812.0,0.257709]
[1727785887653,0.43859,63816.0,63812.0,0.001]
[1727785887889,0.4434969,63816.0,63812.0,0.001]
[1727785888815,0.4434969,63816.0,63813.0,0.156707]
[1727785889032,0.4434969,63816.0,63812.0,0.001]
[1727785889259,0.4434969,63816.0,63812.0,0.101]
[1727785889483,0.49221112,63816.0,63812.0,0.257708]
[1727785889713,0.4434969,63816.0,63812.0,0.101]
[1727785889956,0.4524969,63816.0,63814.0,0.156704]
[1727785890628,0.4614969,63816.0,63814.0,0.156704]
[1727785890874,0.4614969,63816.0,63812.0,0.257709]
[1727785891145,0.4614969,63816.0,63813.0,0.156707]
[1727785891146,0.4524969,63816.0,63813.0,0.156707]
[1727785891386,0.4434969,63816.0,63813.0,0.156707]
[1727785891629,0.4524969,63816.0,63814.0,0.157704]
[1727785891869,0.4524969,63816.0,63814.0,0.156704]
[1727785892579,0.4614969,63816.0,63814.0,0.156704]
[1727785893456,0.4524969,63816.0,63815.0,0.156702]
[1727785894372,0.4524969,63816.0,63814.0,0.001824]
[1727785894597,0.4524969,63816.0,63814.0,0.157527]
[1727785894828,0.4524969,63816.0,63815.0,0.156702]
[1727785895079,0.4524969,63816.0,63815.0,0.157702]
[1727785895300,0.4434969,63816.0,63815.0,0.156702]
[1727785895521,0.4524969,63816.0,63815.0,0.156702]
[1727785897338,0.4614969,63816.0,63815.0,0.156702]
[1727785897581,0.4524969,63816.0,63815.0,0.156702]
[1727785897826,0.4614969,63816.0,63815.0,0.157702]
[1727785899186,0.52414659,63816.0,63815.0,0.001]
[1727785899876,0.4764969,63816.0,63815.0,0.001]
[1727785901609,0.4664969,63816.0,63815.0,0.001]
[1727785902277,0.4664969,63816.0,63815.0,0.157702]
[1727785908758,0.4614969,63816.0,63815.0,0.157702]
[1727785909196,0.4614969,63816.0,63815.0,0.3141598]
[1727785909614,0.45659,63816.0,63815.0,0.3141598]
[1727785909830,0.46071903,63816.0,63815.0,0.3141598]
[1727785910275,0.46071903,63816.0,63815.0,0.4141598]
[1727785910505,0.46071903,63816.0,63815.0,0.5969598]
[1727785910717,0.46071903,63816.0,63815.0,0.5959598]
[1727785910718,0.44271903,63816.0,63815.0,0.5959598]
[1727785910931,0.44371903,63816.0,63815.0,0.5959598]
[1727785911577,0.44271903,63816.0,63815.0,0.5959598]
[1727785911796,0.44271903,63816.0,63815.0,0.5979598]
[1727785914193,0.44271903,63816.0,63815.0,0.82958824]
[1727785914436,0.43859,63816.0,63815.0,0.85258824]
[1727785914895,0.43859,63816.0,63815.0,0.85458824]
[1727785915111,0.43859,63816.0,63815.0,0.9014538]
[1727785915362,0.43859,63816.0,63815.0,0.72652536]
[1727785915610,0.43859,63816.0,63815.0,0.6796598]
[1727785916067,0.43859,63816.0,63815.0,0.6776598]
[1727785916287,0.43959,63816.0,63815.0,0.6876598]
[1727785916536,0.44374008,63816.0,63815.0,0.6876598]
[1727785916967,0.44474008,63816.0,63815.0,0.6876598]
[1727785917405,0.44374008,63816.0,63815.0,0.6876598]
[1727785917639,0.44274008,63816.0,63815.0,0.85886859]
[1727785917897,0.44274008,63816.0,63815.0,0.90636012]
[1727785918113,0.44274008,63816.0,63815.0,0.90136012]
[1727785918323,0.44274008,63816.0,63815.0,0.90318412]
[1727785918543,0.44274008,63816.0,63815.0,0.90818412]
[1727785918767,0.44274008,63816.0,63815.0,0.93118412]
[1727785919213,0.44274008,63816.0,63815.0,0.92618412]
[1727785919214,0.43859,63816.0,63815.0,0.92618412]
[1727785919648,0.43959,63816.0,63815.0,0.93118412]
[1727785920074,0.44486642,63816.0,63815.0,0.93118412]
[1727785920600,0.44386642,63816.0,63815.0,0.93118412]
[1727785920833,0.44386642,63816.0,63815.0,0.93318412]
[1727785921053,0.44386642,63816.0,63815.0,0.92718412]
[1727785921281,0.44486642,63816.0,63815.0,0.93318412]
[1727785922647,0.44059,63816.0,63815.0,0.93318412]
[1727785922863,0.4447438,63816.0,63815.0,0.93318412]
[1727785923337,0.4447438,63816.0,63815.0,0.98005308]
[1727785923565,0.44059,63816.0,63815.0,0.93318412]
[1727785924027,0.44473969,63816.0,63815.0,0.93318412]
[1727785924272,0.44473969,63816.0,63815.0,1.15324407]
[1727785924504,0.44473969,63816.0,63815.0,1.22368506]
[1727785924505,0.44059,63816.0,63815.0,1.22368506]
[1727785924719,0.44059,63816.0,63815.0,1.2236772]
[1727785924939,0.44059,63816.0,63815.0,1.22372956]
[1727785925153,0.44059,63816.0,63815.0,1.22375033]
[1727785925369,0.44059,63816.0,63815.0,1.04054154]
[1727785925633,0.44059,63816.0,63815.0,0.7074838]
[1727785925855,0.44059,63816.0,63815.0,0.5016838]
[1727785926069,0.44059,63816.0,63815.0,0.57212479]
[1727785926300,0.44059,63816.0,63815.0,0.5016838]
[1727785926526,0.44059,63816.0,63815.0,0.65813058]
[1727785926754,0.44059,63816.0,63815.0,0.87806903]
[1727785926999,0.44059,63816.0,63815.0,0.90106903]
[1727785928117,0.0495885,63830.0,63829.0,0.156668]
[1727785928365,0.0495885,63830.0,63829.0,0.89083459]
[1727785928581,0.23673208,63832.0,63831.0,0.279663]